bitfinex-derivatives/quotes_SOLF0:USTF0_20260118
["timestamp","ask_amount","ask_price","bid_price","bid_amount"]
[1768769343816,21.3571657,142.48,142.42,256.13863077]
[1768769348224,21.3571657,142.48,142.42,18.97489608]
[1768769351025,19.59088314,142.47,142.42,18.97489608]
[1768769351928,0.04899202,142.46,142.42,18.97489608]
[1768769353417,19.63987516,142.46,142.4,20.74117864]
[1768769353620,25.95967516,142.46,142.4,20.74117864]
[1768769354128,25.95967516,142.46,142.4,18.97489608]
[1768769354129,19.59088314,142.45,142.4,18.97489608]
[1768769354427,25.91118314,142.45,142.4,18.97489608]
[1768769356431,25.91158314,142.44,142.38,20.74117864]
[1768769356834,25.91158314,142.44,142.38,18.97489608]
[1768769357224,0.05282785,142.42,142.38,18.97489608]
[1768769385241,6.37442785,142.42,142.38,18.97489608]
[1768769385544,6.37442785,142.42,142.35,1.76628256]
[1768769386744,6.37442785,142.42,142.37,1.76628256]
[1768769387246,6.3216,142.42,142.37,1.76628256]
[1768769387447,25.91178314,142.44,142.38,19.44588309]
[1768769387644,0.04554779,142.41,142.38,19.44588309]
[1768769399757,25.91158314,142.44,142.38,19.44588309]
[1768769401252,0.051625,142.42,142.4,0.0467442]
[1768769423690,25.91158314,142.44,142.4,0.0467442]
[1768769429196,19.71315057,142.43,142.4,0.0467442]
[1768769430996,21.48118556,142.43,142.37,20.00216329]
[1768769432309,19.71315057,142.42,142.37,20.00216329]
[1768769441409,19.71315057,142.42,142.37,26.32576329]
[1768769447212,19.51087493,142.44,142.38,25.248712]
[1768769455924,19.51087493,142.44,142.38,18.925512]
[1768769470728,6.3202,142.45,142.38,18.925512]
[1768769470931,25.60201637,142.45,142.38,18.925512]
[1768769476341,19.28181637,142.44,142.38,18.925512]
[1768769485954,19.28181637,142.44,142.38,25.248712]
[1768769486643,20.34072806,142.46,142.4,19.62675853]
[1768769486848,1.76809055,142.5,142.4,19.62675853]
[1768769487849,8.08609055,142.5,142.42,6.3213]
[1768769488156,1.76809055,142.5,142.42,25.94805853]
[1768769488750,20.34072806,142.49,142.42,25.94805853]
[1768769495858,20.34072806,142.49,142.42,19.62675853]
[1768769499365,20.66449661,142.45,142.39,19.79835541]
[1768769500871,26.98479661,142.45,142.39,19.79835541]
[1768769503172,20.66449661,142.44,142.39,19.79835541]
[1768769505578,22.43258716,142.44,142.39,19.79835541]
[1768769507679,22.43258716,142.44,142.37,19.79835541]
[1768769509888,22.43258716,142.44,142.37,26.12195541]
[1768769510184,22.43258716,142.44,142.38,19.79835541]
[1768769510892,22.43279773,142.44,142.38,19.79835541]
[1768769511988,22.43279773,142.44,142.38,26.12155541]
[1768769512789,19.64626891,142.46,142.4,20.77619133]
[1768769512985,21.41457003,142.46,142.4,20.77619133]
[1768769515691,19.64626891,142.46,142.4,20.77619133]
[1768769515887,21.41457003,142.46,142.4,20.77619133]
[1768769520895,25.96606891,142.46,142.4,20.77619133]
[1768769528597,27.73367003,142.48,142.4,20.77619133]
[1768769528997,19.64626891,142.48,142.4,20.77619133]
[1768769530001,19.64626891,142.48,142.41,20.77619133]
[1768769530806,19.64626891,142.48,142.42,20.77619133]
[1768769533606,25.96456891,142.5,142.43,20.77619133]
[1768769533798,19.64626891,142.49,142.43,20.77619133]
[1768769543607,25.96476891,142.49,142.43,20.77619133]
[1768769550616,27.73307003,142.49,142.43,20.77619133]
[1768769556121,21.41457003,142.49,142.43,20.77619133]
[1768769558922,19.64626891,142.49,142.43,20.77619133]
[1768769559122,21.41457003,142.49,142.43,20.77619133]
[1768769572934,21.41328738,142.49,142.43,20.77619133]
[1768769574130,21.41328738,142.49,142.43,27.09719133]
[1768769578728,21.61725157,142.47,142.41,26.29402267]
[1768769580929,21.61725157,142.47,142.42,6.3215]
[1768769586146,21.61725157,142.47,142.41,26.29442267]
[1768769587651,21.61725157,142.47,142.42,6.3213]
[1768769588954,21.61725157,142.47,142.43,6.321]
[1768769596257,21.61725157,142.47,142.42,6.3215]
[1768769597662,5.21166753,142.46,142.42,6.3215]
[1768769597849,5.21166753,142.45,142.42,6.3215]
[1768769598054,21.61725157,142.47,142.42,6.3215]
[1768769598358,5.21169593,142.46,142.42,6.3215]
[1768769598658,5.21169593,142.45,142.42,6.3215]
[1768769598858,21.61725157,142.47,142.42,6.3215]
[1768769599057,5.21171694,142.46,142.42,6.3215]
[1768769599258,5.21171694,142.45,142.42,6.3215]
[1768769599461,21.61725157,142.47,142.42,6.3215]
[1768769599654,5.21173046,142.46,142.42,6.3215]
[1768769599854,5.21173046,142.45,142.42,6.3215]
[1768769600053,21.61725157,142.47,142.42,6.3215]
[1768769600259,5.21189763,142.46,142.42,6.3215]
[1768769600460,5.21189763,142.45,142.42,6.3215]
[1768769600762,21.61725157,142.47,142.42,6.3215]
[1768769601061,5.21178899,142.46,142.42,6.3215]
[1768769601359,5.21178899,142.45,142.42,6.3215]
[1768769601561,21.61725157,142.47,142.42,6.3215]
[1768769601761,5.21173767,142.46,142.42,6.3215]
[1768769601962,5.21173767,142.45,142.42,6.3215]
[1768769602164,21.61725157,142.47,142.42,6.3215]
[1768769602465,5.21170186,142.46,142.42,6.3215]
[1768769602766,5.21170186,142.45,142.42,6.3215]
[1768769603064,21.61725157,142.47,142.42,6.3215]
[1768769603265,5.21167632,142.46,142.42,6.3215]
[1768769603460,5.21167632,142.45,142.42,6.3215]
[1768769603657,21.61725157,142.47,142.42,6.3215]
[1768769603862,5.21167244,142.46,142.42,6.3215]
[1768769604063,21.61725157,142.47,142.42,6.3215]
[1768769604064,5.21167244,142.45,142.42,6.3215]
[1768769604362,21.61725157,142.47,142.42,6.3215]
[1768769604561,5.21165383,142.46,142.42,6.3215]
[1768769604765,5.21165383,142.45,142.42,6.3215]
[1768769604966,21.61725157,142.47,142.42,6.3215]
[1768769605166,5.21165383,142.46,142.42,6.3215]
[1768769605368,5.21165383,142.45,142.42,6.3215]
[1768769605562,21.61725157,142.47,142.4,6.3221]
[1768769605770,21.17850316,142.45,142.39,20.0264065]
[1768769606069,24.62312912,142.44,142.39,20.0264065]
[1768769606264,5.21164443,142.43,142.39,20.0264065]
[1768769606464,19.41148469,142.44,142.39,20.0264065]
[1768769606664,5.21052511,142.43,142.39,20.0264065]
[1768769606867,19.41148469,142.44,142.39,20.0264065]
[1768769612574,24.61721923,142.43,142.38,6.3231]
[1768769612874,19.41148469,142.43,142.38,6.3231]
[1768769614076,19.41148469,142.43,142.38,26.3495065]
[1768769615875,19.41148469,142.43,142.38,20.0264065]
[1768769624185,19.41148469,142.43,142.36,236.80895126]
[1768769624385,26.15981674,142.42,142.36,236.80895126]
[1768769624587,20.96072278,142.42,142.36,256.84744291]
[1768769625884,26.15967106,142.41,142.36,256.84744291]
[1768769626090,20.96072278,142.41,142.36,256.84744291]
[1768769628895,27.28282278,142.41,142.36,256.84744291]
[1768769630394,27.28282278,142.41,142.36,20.03849165]
[1768769631494,6.3227,142.4,142.32,6.3256]
[1768769631696,6.3227,142.4,142.33,1.76701847]
[1768769633597,6.3227,142.4,142.34,19.91275469]
[1768769635903,20.96072278,142.41,142.34,19.91275469]
[1768769640704,20.96072278,142.41,142.35,19.91275469]
[1768769645112,21.1032385,142.43,142.37,21.68180788]
[1768769646808,21.1032385,142.43,142.37,28.00540788]
[1768769649813,21.1032385,142.43,142.38,26.23595469]
[1768769650014,21.1032385,142.45,142.38,19.91275469]
[1768769650211,5.20442967,142.44,142.38,19.91275469]
[1768769650411,5.20442967,142.43,142.38,19.91275469]
[1768769650714,21.1032385,142.45,142.38,19.91275469]
[1768769651014,5.20573388,142.44,142.38,19.91275469]
[1768769651213,5.20573388,142.43,142.38,19.91275469]
[1768769651411,21.1032385,142.45,142.38,19.91275469]
[1768769651610,5.20597132,142.44,142.38,19.91275469]
[1768769651811,5.20597132,142.43,142.38,19.91275469]
[1768769652004,21.1032385,142.45,142.38,19.91275469]
[1768769652204,5.20597132,142.44,142.38,19.91275469]
[1768769652406,5.20597132,142.43,142.38,19.91275469]
[1768769652606,21.1032385,142.45,142.38,19.91275469]
[1768769652807,5.20622062,142.44,142.38,19.91275469]
[1768769653010,5.20622062,142.43,142.38,19.91275469]
[1768769653214,27.4234385,142.45,142.38,19.91275469]
[1768769653405,5.2064767,142.44,142.38,19.91275469]
[1768769653605,5.2064767,142.43,142.38,19.91275469]
[1768769653806,27.4234385,142.45,142.38,19.91275469]
[1768769654014,5.2064767,142.44,142.38,19.91275469]
[1768769654215,5.2064767,142.43,142.38,19.91275469]
[1768769654514,21.1032385,142.45,142.38,19.91275469]
[1768769654714,5.20673029,142.44,142.38,19.91275469]
[1768769655015,5.20673029,142.43,142.38,19.91275469]
[1768769655217,21.1032385,142.45,142.38,19.91275469]
[1768769655419,5.20699081,142.44,142.38,19.91275469]
[1768769655613,5.20699081,142.43,142.38,19.91275469]
[1768769655812,21.1032385,142.45,142.38,19.91275469]
[1768769656014,5.20699081,142.44,142.38,19.91275469]
[1768769656219,5.20699081,142.43,142.38,19.91275469]
[1768769656417,21.1032385,142.45,142.38,19.91275469]
[1768769656612,5.20725878,142.44,142.38,19.91275469]
[1768769656814,5.20725878,142.43,142.38,19.91275469]
[1768769657013,21.1032385,142.45,142.38,19.91275469]
[1768769657214,5.20761364,142.44,142.38,19.91275469]
[1768769657415,5.20761364,142.43,142.38,19.91275469]
[1768769657621,21.1032385,142.45,142.38,19.91275469]
[1768769657814,5.20381382,142.44,142.38,19.91275469]
[1768769658014,5.20381382,142.43,142.38,19.91275469]
[1768769658214,21.1032385,142.45,142.38,19.91275469]
[1768769658414,5.20389636,142.44,142.38,19.91275469]
[1768769658614,5.20389636,142.43,142.38,19.91275469]
[1768769658814,21.1032385,142.45,142.38,19.91275469]
[1768769659015,5.20389636,142.44,142.38,19.91275469]
[1768769659217,5.20389636,142.43,142.38,19.91275469]
[1768769659422,21.1032385,142.45,142.38,19.91275469]
[1768769659620,5.20382669,142.44,142.38,19.91275469]
[1768769659920,5.20382669,142.43,142.38,26.23585469]
[1768769660220,21.1032385,142.45,142.38,26.23585469]
[1768769660419,5.20376487,142.44,142.38,26.23585469]
[1768769660616,5.20376487,142.43,142.38,26.23585469]
[1768769660818,21.1032385,142.45,142.38,26.23585469]
[1768769661020,5.20376487,142.44,142.38,26.23585469]
[1768769661219,5.20376487,142.43,142.38,26.23585469]
[1768769661518,21.1032385,142.45,142.38,26.23585469]
[1768769661713,5.20370565,142.44,142.38,26.23585469]
[1768769661923,21.1032385,142.46,142.4,19.91275469]
[1768769662124,5.20353021,142.45,142.4,19.91275469]
[1768769662325,5.20353021,142.44,142.4,19.91275469]
[1768769662524,21.1032385,142.46,142.4,19.91275469]
[1768769662725,5.20312719,142.45,142.4,19.91275469]
[1768769662920,5.20312719,142.44,142.4,19.91275469]
[1768769663121,21.1032385,142.46,142.4,19.91275469]
[1768769663427,5.20303927,142.45,142.4,19.91275469]
[1768769663628,5.20303927,142.44,142.4,19.91275469]
[1768769663830,21.1032385,142.46,142.4,19.91275469]
[1768769664124,5.20275876,142.45,142.4,19.91275469]
[1768769664326,5.20275876,142.44,142.4,19.91275469]
[1768769664523,21.1032385,142.46,142.4,19.91275469]
[1768769664719,5.20236495,142.45,142.4,19.91275469]
[1768769665025,21.1032385,142.46,142.4,19.91275469]
[1768769665026,5.20236495,142.44,142.4,19.91275469]
[1768769665230,21.1032385,142.46,142.4,19.91275469]
[1768769665527,5.20199788,142.45,142.4,19.91275469]
[1768769665725,5.20199788,142.44,142.4,19.91275469]
[1768769665924,21.1032385,142.46,142.4,19.91275469]
[1768769666223,5.20180951,142.45,142.4,19.91275469]
[1768769666422,5.20180951,142.44,142.4,19.91275469]
[1768769666627,21.1032385,142.46,142.4,19.91275469]
[1768769666823,5.20133321,142.45,142.4,19.91275469]
[1768769667024,5.20133321,142.44,142.4,19.91275469]
[1768769667225,21.1032385,142.46,142.4,19.91275469]
[1768769667426,5.20088544,142.45,142.4,19.91275469]
[1768769667626,21.1032385,142.46,142.4,19.91275469]
[1768769667827,5.20088544,142.45,142.4,19.91275469]
[1768769668027,21.1032385,142.46,142.4,19.91275469]
[1768769668328,5.20070577,142.45,142.4,19.91275469]
[1768769668529,21.1032385,142.46,142.4,19.91275469]
[1768769668727,5.20046444,142.45,142.4,19.91275469]
[1768769668928,21.1032385,142.46,142.4,19.91275469]
[1768769669129,5.20046444,142.45,142.4,19.91275469]
[1768769669329,21.1032385,142.46,142.4,19.91275469]
[1768769669628,5.20006819,142.45,142.4,19.91275469]
[1768769669829,21.1032385,142.46,142.4,19.91275469]
[1768769670029,5.20006819,142.45,142.4,19.91275469]
[1768769670223,27.4231385,142.46,142.4,19.91275469]
[1768769670425,5.199733,142.45,142.4,19.91275469]
[1768769670721,27.4231385,142.46,142.4,19.91275469]
[1768769670924,5.199733,142.45,142.4,19.91275469]
[1768769671120,27.4231385,142.46,142.4,19.91275469]
[1768769671431,5.19972874,142.45,142.4,19.91275469]
[1768769671730,27.4231385,142.46,142.4,19.91275469]
[1768769671928,5.19958919,142.45,142.4,19.91275469]
[1768769672128,27.4231385,142.46,142.4,19.91275469]
[1768769672428,5.19935152,142.45,142.4,19.91275469]
[1768769672628,27.4231385,142.46,142.4,19.91275469]
[1768769672828,5.19935152,142.45,142.4,19.91275469]
[1768769673130,6.3202,142.45,142.4,19.91275469]
[1768769679636,8.08925319,142.45,142.4,19.91275469]
[1768769680136,1.76905319,142.45,142.4,19.91275469]
[1768769681139,5.20121924,142.44,142.4,19.91275469]
[1768769681328,1.76905319,142.45,142.4,19.91275469]
[1768769681531,5.2012784,142.44,142.4,19.91275469]
[1768769681833,1.76905319,142.45,142.4,19.91275469]
[1768769682031,5.2012784,142.44,142.4,19.91275469]
[1768769682229,1.76905319,142.45,142.4,19.91275469]
[1768769682434,5.20196347,142.44,142.4,19.91275469]
[1768769682634,1.76905319,142.45,142.4,19.91275469]
[1768769682933,5.20196347,142.44,142.4,19.91275469]
[1768769683133,1.76905319,142.45,142.4,19.91275469]
[1768769683333,5.20273869,142.44,142.4,19.91275469]
[1768769683630,1.76905319,142.45,142.4,19.91275469]
[1768769683835,5.20273869,142.44,142.4,19.91275469]
[1768769684037,1.76905319,142.45,142.4,19.91275469]
[1768769684236,5.20356632,142.44,142.4,19.91275469]
[1768769684543,1.76905319,142.45,142.4,19.91275469]
[1768769684738,5.20363706,142.44,142.4,19.91275469]
[1768769685038,1.76905319,142.45,142.4,19.91275469]
[1768769685244,5.20363706,142.44,142.4,19.91275469]
[1768769685441,1.76905319,142.45,142.4,19.91275469]
[1768769685738,5.20370861,142.44,142.4,19.91275469]
[1768769685938,1.76905319,142.45,142.4,19.91275469]
[1768769686140,5.20370861,142.44,142.4,19.91275469]
[1768769686340,1.76905319,142.45,142.4,19.91275469]
[1768769686641,5.20475555,142.44,142.4,19.91275469]
[1768769686841,1.76905319,142.45,142.4,19.91275469]
[1768769687040,5.20475324,142.44,142.4,19.91275469]
[1768769687243,1.76905319,142.45,142.4,19.91275469]
[1768769687435,5.20598023,142.44,142.4,19.91275469]
[1768769687637,1.76905319,142.45,142.4,19.91275469]
[1768769697047,22.87114258,142.46,142.4,19.91275469]
[1768769716869,1.76790408,142.44,142.4,19.91275469]
[1768769722170,1.76790408,142.44,142.38,19.42423535]
[1768769723673,1.76790408,142.44,142.38,25.74743535]
[1768769724469,1.76790408,142.44,142.39,18.9849938]
[1768769728969,1.76790408,142.44,142.38,6.3232]
[1768769728970,21.51408417,142.44,142.38,6.3232]
[1768769729162,1.76790408,142.42,142.37,18.9849938]
[1768769729669,5.22163302,142.41,142.37,18.9849938]
[1768769729862,1.76790408,142.42,142.37,18.9849938]
[1768769731076,1.76790408,142.42,142.37,25.3085938]
[1768769736881,5.21805226,142.41,142.37,18.9849938]
[1768769737086,21.5402697,142.42,142.37,18.9849938]
[1768769737278,5.21716727,142.41,142.37,18.9849938]
[1768769737583,21.5402697,142.42,142.35,6.3243]
[1768769737776,1.76790408,142.4,142.35,24.94694523]
[1768769737975,1.76790408,142.4,142.36,18.62264523]
[1768769740683,21.5402697,142.42,142.36,18.62264523]
[1768769740884,5.21387364,142.41,142.36,18.62264523]
[1768769741084,21.5402697,142.42,142.36,18.62264523]
[1768769741284,5.21312988,142.41,142.36,18.62264523]
[1768769741484,21.5402697,142.42,142.36,18.62264523]
[1768769741685,5.21303184,142.41,142.36,18.62264523]
[1768769741981,19.77236562,142.41,142.36,18.62264523]
[1768769742186,24.98564821,142.4,142.34,258.65487896]
[1768769742485,19.77236562,142.4,142.34,258.65487896]
[1768769742787,19.77236562,142.4,142.35,18.62264523]
[1768769744687,21.5402697,142.42,142.35,18.62264523]
[1768769744888,5.2102674,142.41,142.35,18.62264523]
[1768769745088,5.2102674,142.4,142.35,18.62264523]
[1768769745292,21.5402697,142.42,142.35,18.62264523]
[1768769745589,5.2095695,142.41,142.35,24.94714523]
[1768769745791,5.2095695,142.4,142.35,24.94714523]
[1768769745993,21.5402697,142.42,142.35,24.94714523]
[1768769746188,5.2095695,142.41,142.35,24.94714523]
[1768769746491,5.2095695,142.4,142.35,24.94714523]
[1768769746693,21.5402697,142.42,142.35,24.94714523]
[1768769746894,5.20891263,142.41,142.35,24.94714523]
[1768769747089,5.20891263,142.4,142.35,24.94714523]
[1768769747289,21.5402697,142.42,142.35,24.94714523]
[1768769747488,5.20834697,142.41,142.35,24.94714523]
[1768769747693,5.20834697,142.4,142.35,24.94714523]
[1768769747992,21.5402697,142.42,142.35,24.94714523]
[1768769748191,24.98235126,142.41,142.35,24.94714523]
[1768769748388,5.20998564,142.4,142.35,24.94714523]
[1768769748590,19.77236562,142.41,142.35,24.94714523]
[1768769748888,5.2095025,142.4,142.35,24.94714523]
[1768769749088,19.77236562,142.41,142.35,24.94714523]
[1768769749893,19.77236562,142.41,142.35,18.62264523]
[1768769761204,5.20922889,142.4,142.35,18.62264523]
[1768769761404,19.77236562,142.41,142.35,18.62264523]
[1768769761704,5.20922889,142.4,142.35,18.62264523]
[1768769761904,19.77236562,142.41,142.35,18.62264523]
[1768769762106,5.20922889,142.4,142.35,18.62264523]
[1768769762300,19.77236562,142.41,142.35,18.62264523]
[1768769762500,5.20943759,142.4,142.35,18.62264523]
[1768769762704,19.77236562,142.41,142.35,18.62264523]
[1768769762906,5.20943759,142.4,142.35,18.62264523]
[1768769763105,19.77236562,142.41,142.35,18.62264523]
[1768769763300,5.20971285,142.4,142.35,18.62264523]
[1768769763502,19.77236562,142.41,142.35,18.62264523]
[1768769763801,5.20971285,142.4,142.35,18.62264523]
[1768769763994,19.77236562,142.41,142.35,18.62264523]
[1768769764200,5.20975762,142.4,142.35,18.62264523]
[1768769764395,19.77236562,142.41,142.35,18.62264523]
[1768769764601,5.20992348,142.4,142.35,18.62264523]
[1768769764896,19.77236562,142.41,142.35,18.62264523]
[1768769765101,5.20992348,142.4,142.35,18.62264523]
[1768769765300,19.77236562,142.41,142.35,18.62264523]
[1768769765505,5.21018338,142.4,142.35,18.62264523]
[1768769765707,19.77236562,142.41,142.35,18.62264523]
[1768769766004,6.3216,142.42,142.35,20.39160181]
[1768769766207,5.21010419,142.41,142.37,18.24374482]
[1768769766406,6.3216,142.42,142.37,18.24374482]
[1768769766609,5.21063672,142.41,142.37,18.24374482]
[1768769766804,6.3216,142.42,142.37,18.24374482]
[1768769767104,5.21063672,142.41,142.37,18.24374482]
[1768769767304,6.3216,142.42,142.37,18.24374482]
[1768769767506,5.21123089,142.41,142.37,18.24374482]
[1768769767705,6.3216,142.42,142.37,18.24374482]
[1768769768002,5.21123089,142.41,142.37,18.24374482]
[1768769768207,6.3216,142.42,142.37,18.24374482]
[1768769768405,5.21186547,142.41,142.37,18.24374482]
[1768769768609,6.3216,142.42,142.37,18.24374482]
[1768769768810,5.21186547,142.41,142.37,18.24374482]
[1768769769112,6.3216,142.42,142.37,18.24374482]
[1768769769310,5.21258867,142.41,142.37,18.24374482]
[1768769769510,6.3216,142.42,142.37,18.24374482]
[1768769769712,5.21258911,142.41,142.37,18.24374482]
[1768769769913,23.92777557,142.42,142.37,18.24374482]
[1768769770113,5.21259312,142.41,142.37,18.24374482]
[1768769770414,5.21346409,142.4,142.36,0.05239814]
[1768769770613,17.60617557,142.41,142.36,0.05239814]
[1768769770806,5.2136649,142.4,142.36,0.05239814]
[1768769771002,17.60617557,142.41,142.36,0.05239814]
[1768769771216,5.2136649,142.4,142.36,0.05239814]
[1768769771513,17.60617557,142.41,142.36,0.05239814]
[1768769771704,5.21444717,142.4,142.36,0.05239814]
[1768769771904,17.60617557,142.41,142.36,0.05239814]
[1768769772106,5.21444717,142.4,142.36,0.05239814]
[1768769772303,17.60617557,142.41,142.36,0.05239814]
[1768769772503,5.21536861,142.4,142.36,0.05239814]
[1768769772715,17.60617557,142.41,142.36,0.05239814]
[1768769772910,5.21536861,142.4,142.36,0.05239814]
[1768769773216,5.21646313,142.39,142.36,0.05239814]
[1768769773416,17.60617557,142.41,142.36,0.05239814]
[1768769773614,5.21646313,142.4,142.36,0.05239814]
[1768769773811,5.21646313,142.39,142.36,0.05239814]
[1768769774013,17.60617557,142.41,142.36,0.05239814]
[1768769774212,5.21648482,142.4,142.36,0.05239814]
[1768769774414,5.21648482,142.39,142.36,0.05239814]
[1768769774613,17.60617557,142.41,142.36,0.05239814]
[1768769774815,5.2170968,142.4,142.36,0.05239814]
[1768769775112,5.2170968,142.39,142.36,0.05239814]
[1768769775312,17.60617557,142.41,142.36,0.05239814]
[1768769775514,5.2176054,142.4,142.36,0.05239814]
[1768769775715,17.60617557,142.41,142.36,18.29614296]
[1768769775914,5.2175364,142.4,142.36,18.29614296]
[1768769776117,17.60617557,142.41,142.36,18.29614296]
[1768769776315,5.21819898,142.4,142.36,18.29614296]
[1768769776520,17.60617557,142.41,142.36,18.29614296]
[1768769776721,5.21819898,142.4,142.36,18.29614296]
[1768769777019,17.60617557,142.41,142.36,18.29614296]
[1768769777215,5.21829884,142.4,142.36,18.29614296]
[1768769777416,17.60617557,142.41,142.36,18.29614296]
[1768769777614,5.21893967,142.4,142.36,18.29614296]
[1768769777815,17.60617557,142.41,142.36,18.29614296]
[1768769778110,5.21609864,142.4,142.36,18.29614296]
[1768769778311,5.21609864,142.39,142.36,18.29614296]
[1768769778511,17.60617557,142.41,142.36,18.29614296]
[1768769778713,5.2169589,142.4,142.36,18.29614296]
[1768769778916,5.2169589,142.39,142.36,18.29614296]
[1768769779218,17.60617557,142.41,142.36,18.29614296]
[1768769779415,5.21797304,142.4,142.36,18.29614296]
[1768769779617,5.21797304,142.39,142.36,18.29614296]
[1768769779916,17.60617557,142.41,142.36,18.29614296]
[1768769780117,5.21797304,142.4,142.36,18.29614296]
[1768769780314,5.21797304,142.39,142.36,18.29614296]
[1768769780520,17.60617557,142.41,142.36,18.29614296]
[1768769780718,5.21923244,142.4,142.36,18.29614296]
[1768769781018,5.21923244,142.39,142.36,18.29614296]
[1768769781215,17.60617557,142.41,142.36,18.29614296]
[1768769781418,5.22096751,142.4,142.36,18.29614296]
[1768769781620,5.22096751,142.39,142.36,18.29614296]
[1768769781927,17.60617557,142.41,142.36,18.29614296]
[1768769782116,5.22096982,142.4,142.36,18.29614296]
[1768769782320,5.22096982,142.39,142.36,18.29614296]
[1768769782522,17.60617557,142.41,142.36,18.29614296]
[1768769782723,5.22152169,142.4,142.36,18.29614296]
[1768769782924,5.22152169,142.39,142.36,18.29614296]
[1768769783127,17.60617557,142.41,142.36,18.29614296]
[1768769783329,5.22172111,142.4,142.36,18.29614296]
[1768769783529,5.22172111,142.39,142.36,18.29614296]
[1768769783728,17.60617557,142.41,142.36,18.29614296]
[1768769783927,5.22172111,142.4,142.36,18.29614296]
[1768769784125,5.22172111,142.39,142.36,18.29614296]
[1768769784332,17.60617557,142.41,142.36,18.29614296]
[1768769784633,5.22194329,142.4,142.36,18.29614296]
[1768769784829,5.22194329,142.39,142.36,18.29614296]
[1768769785029,17.60617557,142.41,142.36,18.29614296]
[1768769785232,5.22197008,142.4,142.36,18.29614296]
[1768769785427,5.22197008,142.39,142.36,18.29614296]
[1768769785627,17.60617557,142.41,142.36,18.29614296]
[1768769785827,5.22218787,142.4,142.36,18.29614296]
[1768769786032,5.22218787,142.39,142.36,18.29614296]
[1768769786331,17.60617557,142.41,142.36,18.29614296]
[1768769786532,5.22247237,142.4,142.36,18.29614296]
[1768769786733,5.22247237,142.39,142.36,18.29614296]
[1768769786934,17.60617557,142.41,142.36,18.29614296]
[1768769787135,5.22247005,142.4,142.36,18.29614296]
[1768769787435,5.22247005,142.39,142.36,18.29614296]
[1768769787731,17.60617557,142.41,142.36,18.29614296]
[1768769787932,5.22246354,142.4,142.36,18.29614296]
[1768769788134,5.22246354,142.39,142.36,18.29614296]
[1768769788334,17.60617557,142.41,142.36,18.29614296]
[1768769788535,5.22246093,142.4,142.36,18.29614296]
[1768769788731,5.22246093,142.39,142.36,18.29614296]
[1768769788933,17.60617557,142.41,142.36,0.05239814]
[1768769789230,5.22247127,142.4,142.36,0.05239814]
[1768769789433,5.22247127,142.39,142.36,0.05239814]
[1768769789639,17.60617557,142.41,142.36,0.05239814]
[1768769789934,5.22247084,142.4,142.36,0.05239814]
[1768769790131,5.22247084,142.39,142.36,0.05239814]
[1768769790337,17.60617557,142.41,142.36,0.05239814]
[1768769790541,5.22247165,142.4,142.36,0.05239814]
[1768769790733,5.22247165,142.39,142.36,0.05239814]
[1768769790929,17.60617557,142.41,142.36,0.05239814]
[1768769791135,5.22247165,142.4,142.36,0.05239814]
[1768769791330,5.22247165,142.39,142.36,0.05239814]
[1768769791539,17.60617557,142.41,142.36,0.05239814]
[1768769791838,5.22247297,142.4,142.36,0.05239814]
[1768769792032,17.60617557,142.41,142.36,0.05239814]
[1768769792033,5.22247297,142.39,142.36,0.05239814]
[1768769792234,17.60617557,142.41,142.36,0.05239814]
[1768769792433,5.22247884,142.4,142.36,0.05239814]
[1768769792642,5.22247884,142.39,142.36,0.05239814]
[1768769792838,17.60617557,142.41,142.36,0.05239814]
[1768769793038,5.22247482,142.4,142.36,0.05239814]
[1768769793239,5.22247482,142.39,142.36,0.05239814]
[1768769793438,17.60617557,142.41,142.36,0.05239814]
[1768769793640,5.22247719,142.4,142.36,0.05239814]
[1768769793939,5.22247719,142.39,142.36,0.05239814]
[1768769794139,17.60617557,142.41,142.36,0.05239814]
[1768769794340,5.2223588,142.4,142.36,0.05239814]
[1768769794640,5.2223588,142.39,142.36,0.05239814]
[1768769794839,17.60617557,142.41,142.36,0.05239814]
[1768769795040,5.22226494,142.4,142.36,0.05239814]
[1768769795240,5.22226494,142.39,142.36,0.05239814]
[1768769795541,17.60617557,142.41,142.36,0.05239814]
[1768769795740,5.22219127,142.4,142.36,0.05239814]
[1768769796041,5.22219127,142.39,142.36,0.05239814]
[1768769796234,17.60617557,142.41,142.36,0.05239814]
[1768769796435,5.22212524,142.4,142.36,0.05239814]
[1768769796635,5.22212524,142.39,142.36,0.05239814]
[1768769796831,17.60617557,142.41,142.36,0.05239814]
[1768769797135,5.22212524,142.4,142.36,0.05239814]
[1768769797335,5.22212524,142.39,142.36,0.05239814]
[1768769797537,17.60617557,142.41,142.36,0.05239814]
[1768769797733,5.22206625,142.4,142.36,0.05239814]
[1768769798032,5.22206625,142.39,142.36,0.05239814]
[1768769798234,17.60617557,142.41,142.36,0.05239814]
[1768769798441,5.22201386,142.4,142.36,0.05239814]
[1768769798640,5.22201386,142.39,142.36,0.05239814]
[1768769798840,17.60617557,142.41,142.36,0.05239814]
[1768769799039,5.22201386,142.4,142.36,0.05239814]
[1768769799239,5.22201386,142.39,142.36,0.05239814]
[1768769799444,17.60617557,142.41,142.36,0.05239814]
[1768769799644,5.22196767,142.4,142.36,0.05239814]